bitfinex/quotes_BTCUSD_20240828
["timestamp","ask_amount","ask_price","bid_price","bid_amount"]
[1724810489207,0.21886039,59442.0,59433.0,0.03367]
[1724810489404,0.21886039,59442.0,59434.0,0.023]
[1724810489620,0.21886039,59442.0,59435.0,0.03367]
[1724810489837,0.21886039,59442.0,59437.0,0.03367]
[1724810490038,0.21986039,59442.0,59438.0,0.023]
[1724810490242,0.21886039,59442.0,59438.0,0.023]
[1724810490464,0.005,59461.0,59439.0,0.1534]
[1724810490685,0.001,59442.0,59441.0,0.03367]
[1724810490892,0.001,59442.0,59441.0,0.35553077]
[1724810491103,0.001,59442.0,59441.0,0.47853077]
[1724810491519,0.005,59472.0,59443.0,0.03367]
[1724810491738,0.50540786,59456.0,59448.0,0.36667134]
[1724810492041,0.012,59461.0,59449.0,0.2772]
[1724810492206,0.1208361,59460.0,59449.0,0.123]
[1724810492872,0.1208361,59460.0,59449.0,0.023]
[1724810493079,0.006,59456.0,59449.0,0.023]
[1724810493291,0.1208361,59460.0,59449.0,0.023]
[1724810493730,0.1308361,59460.0,59449.0,0.023]
[1724810493953,0.1208361,59460.0,59449.0,0.023]
[1724810494193,0.1542,59459.0,59449.0,0.023]
[1724810494450,0.006,59456.0,59449.0,0.023]
[1724810495091,0.006,59456.0,59449.0,0.0238998]
[1724810495323,0.2705,59455.0,59449.0,0.0238998]
[1724810496189,0.12126045,59454.0,59449.0,0.0238998]
[1724810496886,0.12126045,59454.0,59449.0,0.0008998]
[1724810497427,0.12526045,59454.0,59449.0,0.0008998]
[1724810497868,0.12926045,59454.0,59449.0,0.0008998]
[1724810499491,0.008,59454.0,59449.0,0.1238998]
[1724810500791,0.002,59497.0,59480.0,9.32307414]
[1724810501025,0.11638287,59486.0,59480.0,9.32307414]
[1724810501486,0.12,59485.0,59480.0,9.32307414]
[1724810501683,0.1169481,59484.0,59481.0,0.023]
[1724810502585,0.1169481,59484.0,59480.0,9.32307414]
[1724810502788,0.14064291,59484.0,59480.0,9.32307414]
[1724810503150,0.1169481,59484.0,59480.0,9.32307414]
[1724810503556,0.24721876,59481.0,59480.0,9.32307414]
[1724810503981,0.38941876,59481.0,59480.0,9.32307414]
[1724810504445,0.38941876,59481.0,59480.0,9.06117569]
[1724810505224,0.40241876,59481.0,59480.0,9.06117569]
[1724810505425,0.44389795,59481.0,59480.0,9.06117569]
[1724810505626,0.43089795,59481.0,59480.0,9.06117569]
[1724810505992,0.44489795,59481.0,59480.0,9.06117569]
[1724810506827,0.45789795,59481.0,59480.0,8.73625292]
[1724810507022,0.47122955,59481.0,59480.0,8.73625292]
[1724810507238,0.43089795,59481.0,59480.0,8.73625292]
[1724810507453,0.41741876,59481.0,59480.0,8.73625292]
[1724810507654,0.40341876,59481.0,59480.0,8.73625292]
[1724810508516,0.42974968,59481.0,59480.0,8.73625292]
[1724810509139,0.44374968,59481.0,59480.0,8.73625292]
[1724810509615,0.49390306,59481.0,59480.0,8.73625292]
[1724810509825,0.55089827,59481.0,59480.0,8.73625292]
[1724810510430,0.48674489,59481.0,59480.0,8.73625292]
[1724810510633,0.50074489,59481.0,59480.0,8.73625292]
[1724810510856,0.48674489,59481.0,59480.0,8.73625292]
[1724810511066,0.50074489,59481.0,59480.0,8.73625292]
[1724810511364,0.57597496,59481.0,59480.0,8.73625292]
[1724810511569,0.57618068,59481.0,59480.0,8.73625292]
[1724810512555,0.50074489,59481.0,59480.0,8.73625292]
[1724810512934,0.57618381,59481.0,59480.0,8.73625292]
[1724810513163,0.50074489,59481.0,59480.0,8.73625292]
[1724810513338,0.41741876,59481.0,59480.0,8.73625292]
[1724810513744,0.46770741,59481.0,59480.0,8.73625292]
[1724810514174,0.41741876,59481.0,59480.0,8.73625292]
[1724810514350,0.41741876,59481.0,59480.0,8.31331763]
[1724810514554,0.4437488,59481.0,59480.0,8.31331763]
[1724810514767,0.49826369,59481.0,59480.0,8.31331763]
[1724810516595,0.62399001,59481.0,59480.0,8.31331763]
[1724810516794,0.49826369,59481.0,59480.0,8.31331763]
[1724810519380,0.49908269,59481.0,59480.0,8.31331763]
[1724810521146,0.48508269,59481.0,59480.0,8.31331763]
[1724810521556,0.63595428,59481.0,59480.0,8.18349088]
[1724810521754,0.48508269,59481.0,59480.0,8.18349088]
[1724810521958,0.50201151,59481.0,59480.0,8.18349088]
[1724810522131,0.48801151,59481.0,59480.0,8.18349088]
[1724810522359,0.58801151,59481.0,59480.0,8.18349088]
[1724810522558,0.58508269,59481.0,59480.0,8.18349088]
[1724810522767,0.57108269,59481.0,59480.0,8.18349088]
[1724810522965,0.58508269,59481.0,59480.0,8.18349088]
[1724810523891,0.57108269,59481.0,59480.0,8.18349088]
[1724810524106,0.58508269,59481.0,59480.0,8.18349088]
[1724810524321,0.59908269,59481.0,59480.0,8.18349088]
[1724810524529,0.58508269,59481.0,59480.0,8.18349088]
[1724810524963,0.59908269,59481.0,59480.0,8.18349088]
[1724810525143,0.58508269,59481.0,59480.0,7.93580606]
[1724810525592,0.59908269,59481.0,59480.0,7.93580606]
[1724810526017,0.87897072,59481.0,59480.0,7.93580606]
[1724810526425,0.76897926,59481.0,59480.0,7.93580606]
[1724810526812,0.74097926,59481.0,59480.0,7.93580606]
[1724810527013,0.75497926,59481.0,59480.0,7.93580606]
[1724810527218,0.66897926,59481.0,59480.0,7.93580606]
[1724810527429,0.65497926,59481.0,59480.0,7.93580606]
[1724810527630,0.38257926,59481.0,59480.0,7.93580606]
[1724810527811,0.1721678,59481.0,59480.0,7.93580606]
[1724810528987,0.1581678,59481.0,59480.0,7.93580606]
[1724810529160,0.1441678,59481.0,59480.0,7.93580606]
[1724810529604,0.1581678,59481.0,59480.0,7.93580606]
[1724810529957,0.18995648,59481.0,59480.0,7.93580606]
[1724810530363,0.1581678,59481.0,59480.0,7.93580606]
[1724810530547,0.1581678,59481.0,59480.0,8.07390606]
[1724810530747,0.1721678,59481.0,59480.0,8.07390606]
[1724810531155,0.1581678,59481.0,59480.0,8.07390606]
[1724810531360,0.1721678,59481.0,59480.0,8.07390606]
[1724810531562,0.18946648,59481.0,59480.0,8.07480586]
[1724810531885,0.1581678,59481.0,59480.0,8.07480586]
[1724810532093,0.13183776,59481.0,59480.0,8.09780586]
[1724810532309,0.14583776,59481.0,59480.0,8.25610586]
[1724810532494,0.13183776,59481.0,59480.0,8.25610586]
[1724810532764,0.11783776,59481.0,59480.0,8.25610586]
[1724810533082,0.13183776,59481.0,59480.0,8.25610586]
[1724810533556,0.000819,59484.0,59480.0,7.95970586]
[1724810533838,0.000819,59484.0,59483.0,0.58538803]
[1724810534014,0.000819,59484.0,59483.0,0.69438803]
[1724810534421,0.000818,59508.0,59485.0,0.03367]
[1724810534625,0.11497014,59507.0,59503.0,0.2885]
[1724810534784,0.11497014,59507.0,59504.0,0.1521]
[1724810534987,0.11497014,59507.0,59506.0,0.1556]
[1724810535244,0.11497014,59507.0,59506.0,0.1786]
[1724810535621,0.000818,59508.0,59506.0,0.1786]
[1724810535958,0.11430528,59508.0,59507.0,0.023]
[1724810536295,0.11430528,59508.0,59507.0,0.172]
[1724810536296,0.000818,59508.0,59507.0,0.172]
[1724810536544,0.000818,59508.0,59507.0,0.3155]
[1724810536915,0.009818,59508.0,59507.0,0.3155]
[1724810537345,0.11423468,59508.0,59507.0,0.3155]
[1724810537492,0.11423468,59508.0,59507.0,0.3135]
[1724810537753,0.12323468,59508.0,59507.0,0.3145]
[1724810538092,0.12523468,59508.0,59507.0,0.3155]
[1724810538291,0.12323468,59508.0,59507.0,0.3145]
[1724810538734,0.12523468,59508.0,59507.0,0.3155]
[1724810538946,0.12323468,59508.0,59507.0,0.3145]
[1724810539623,0.11423468,59508.0,59507.0,0.3135]
[1724810539796,0.12323468,59508.0,59507.0,0.3145]
[1724810540307,0.11423468,59508.0,59507.0,0.3135]
[1724810540509,0.12223468,59508.0,59507.0,0.3155]
[1724810540672,0.12323468,59508.0,59507.0,0.3145]
[1724810540868,0.12323468,59508.0,59507.0,0.3155]
[1724810541099,0.12223468,59508.0,59507.0,0.3145]
[1724810541299,0.11423468,59508.0,59507.0,0.3145]
[1724810541501,0.13123468,59508.0,59507.0,0.3155]
[1724810542675,0.12223468,59508.0,59507.0,0.3145]
[1724810542800,0.008818,59508.0,59507.0,0.3155]
[1724810543008,0.017818,59508.0,59507.0,0.3155]
[1724810543725,0.13123468,59508.0,59507.0,0.3155]
[1724810544128,0.13123468,59508.0,59507.0,0.023]
[1724810544332,0.14443995,59508.0,59507.0,0.002]
[1724810544961,0.29983995,59508.0,59507.0,0.002]
[1724810546460,0.44653995,59508.0,59507.0,0.001]
[1724810546664,0.44153995,59508.0,59507.0,0.002]
[1724810546883,0.45553995,59508.0,59507.0,0.002]
[1724810547091,0.46053995,59508.0,59507.0,0.002]
[1724810547341,0.44653995,59508.0,59507.0,0.001]
[1724810547581,0.44753995,59508.0,59507.0,0.001]
[1724810547901,0.45253995,59508.0,59507.0,0.001]
[1724810548533,0.46653995,59508.0,59507.0,0.002]
[1724810548764,0.45253995,59508.0,59507.0,0.001]
[1724810548961,0.005,59507.0,59493.0,0.1492]
[1724810549161,0.11447579,59503.0,59494.0,0.023]
[1724810550966,0.12847579,59503.0,59494.0,0.023]
[1724810551636,0.14147579,59503.0,59494.0,0.024]
[1724810552181,0.11468765,59498.0,59494.0,0.001]
[1724810552322,0.29645642,59497.0,59494.0,0.001]
[1724810552566,0.11468765,59497.0,59494.0,0.001]
[1724810552972,0.11468765,59497.0,59495.0,0.1742]
[1724810553531,0.11468765,59497.0,59495.0,0.3163]
[1724810553768,0.11468765,59497.0,59494.0,0.001]
[1724810554115,0.12568765,59497.0,59494.0,0.001]
[1724810554905,0.12568765,59497.0,59491.0,0.023]
[1724810555405,0.13868765,59497.0,59494.0,0.0008998]
[1724810555532,0.12768765,59497.0,59494.0,0.0008998]
[1724810555754,0.11468765,59497.0,59494.0,0.0008998]
[1724810555961,0.01276877,59496.0,59494.0,0.0008998]
[1724810556161,0.11518202,59495.0,59494.0,0.0008998]
[1724810558856,0.12218202,59495.0,59494.0,0.0008998]
[1724810559278,0.12618202,59495.0,59494.0,0.0008998]
[1724810559479,0.13318202,59495.0,59494.0,0.0008998]
[1724810559811,0.12218202,59495.0,59494.0,0.0008998]
[1724810560091,0.007,59495.0,59494.0,0.3371998]
[1724810560289,0.023,59495.0,59494.0,0.3601998]
[1724810560700,0.014,59495.0,59494.0,0.3601998]
[1724810561042,0.023,59495.0,59494.0,0.47248379]
[1724810561441,0.009,59495.0,59494.0,0.47248379]
[1724810561859,0.016,59495.0,59494.0,0.47248379]
[1724810562053,0.009,59495.0,59494.0,0.47248379]
[1724810562300,0.11525265,59495.0,59494.0,0.4601998]
[1724810562519,0.11525265,59495.0,59494.0,0.4611998]
[1724810562712,0.12125265,59495.0,59494.0,0.4611998]
[1724810563087,0.12125265,59495.0,59494.0,0.4601998]
[1724810563405,0.11825265,59495.0,59494.0,0.0238998]
[1724810563611,0.12625265,59495.0,59494.0,0.0008998]
[1724810564173,0.11825265,59495.0,59494.0,0.0008998]
[1724810564859,0.11525265,59495.0,59494.0,0.0008998]
[1724810565188,0.12025265,59495.0,59494.0,0.0008998]
[1724810565512,0.12425265,59495.0,59494.0,0.0008998]
[1724810565689,0.13425265,59495.0,59494.0,0.0008998]
[1724810565880,0.12525265,59495.0,59494.0,0.0008998]
[1724810566075,0.11525265,59495.0,59494.0,0.0008998]
[1724810566298,0.13525265,59495.0,59494.0,0.0008998]
[1724810566520,0.16157047,59495.0,59494.0,0.0008998]
[1724810566676,0.15257047,59495.0,59494.0,0.0008998]
[1724810566882,0.14157047,59495.0,59494.0,0.0008998]
[1724810567330,0.15157047,59495.0,59494.0,0.0008998]
[1724810567787,0.03631782,59495.0,59494.0,0.0008998]
[1724810567958,0.01,59495.0,59494.0,0.1834998]
[1724810568161,0.018,59495.0,59494.0,0.2064998]
[1724810568361,0.01,59495.0,59494.0,0.2064998]
[1724810568563,0.000818,59507.0,59494.0,0.2064998]
[1724810568764,0.02,59495.0,59494.0,0.2064998]
[1724810568968,0.011,59495.0,59494.0,0.2064998]
[1724810569214,0.13425265,59495.0,59494.0,0.2064998]
[1724810569548,0.008,59495.0,59494.0,0.4597998]
[1724810569658,0.018,59495.0,59494.0,0.4597998]
[1724810570587,0.018,59495.0,59494.0,0.4721774]
[1724810571200,0.01,59495.0,59494.0,0.4721774]
[1724810571437,0.018,59495.0,59494.0,0.4721774]
[1724810571657,0.008,59495.0,59494.0,0.4721774]
[1724810571990,0.018,59495.0,59494.0,0.4721774]
[1724810572607,0.008,59495.0,59494.0,0.4721774]
[1724810572812,0.01,59495.0,59494.0,0.4721774]
[1724810573305,0.008,59495.0,59494.0,0.4721774]
[1724810573708,0.011,59495.0,59494.0,0.4721774]
[1724810574412,0.003,59495.0,59494.0,0.4721774]
[1724810574613,0.003,59495.0,59494.0,0.4731774]
[1724810574939,0.003,59495.0,59494.0,0.4721774]
[1724810575072,0.000818,59507.0,59494.0,0.4721774]
[1724810575284,0.14071814,59506.0,59495.0,0.123]
[1724810575465,0.02631296,59505.0,59495.0,0.123]
[1724810575675,0.14078875,59505.0,59495.0,0.123]
[1724810575880,0.02631296,59504.0,59495.0,0.123]
[1724810577302,0.02631296,59504.0,59495.0,0.12256418]
[1724810577944,0.02631296,59504.0,59496.0,0.00455841]
[1724810578208,0.04631296,59504.0,59497.0,0.023]
[1724810578407,0.07652147,59503.0,59497.0,0.023]
[1724810578642,0.02631296,59502.0,59497.0,0.023]
[1724810579441,0.07652147,59502.0,59497.0,0.023]
[1724810579641,0.02631296,59501.0,59497.0,0.023]
[1724810580716,0.02631296,59501.0,59496.0,0.00455841]
[1724810580717,0.10041703,59499.0,59496.0,0.00455841]
[1724810580903,0.21524592,59498.0,59496.0,0.00455841]
[1724810581114,0.07666801,59497.0,59496.0,0.00455841]
[1724810581259,0.1412831,59497.0,59496.0,0.00455841]
[1724810581463,0.19163815,59497.0,59496.0,0.00455841]
[1724810581700,0.19163815,59497.0,59496.0,0.19415841]
[1724810581701,0.10184498,59497.0,59496.0,0.19415841]
[1724810582009,0.10070936,59499.0,59496.0,0.34645841]
[1724810582010,0.05635858,59499.0,59496.0,0.34645841]
[1724810582237,0.14114317,59498.0,59496.0,0.00455841]
[1724810582385,0.02731428,59497.0,59496.0,0.00455841]
[1724810582610,0.196643,59497.0,59496.0,0.00455841]
[1724810583040,0.196643,59497.0,59496.0,0.02755841]
[1724810583216,0.14528442,59497.0,59496.0,0.02755841]
[1724810583417,0.22081644,59497.0,59496.0,0.00455841]
[1724810583821,0.14528442,59497.0,59496.0,0.00455841]
[1724810584018,0.14128442,59497.0,59496.0,0.00455841]
[1724810584986,0.33322355,59497.0,59496.0,0.00455841]
[1724810585187,0.03031428,59497.0,59496.0,0.31965841]
[1724810585399,0.03031428,59497.0,59496.0,0.34265841]
[1724810585537,0.005,59497.0,59496.0,0.34265841]
[1724810588201,0.005,59497.0,59496.0,0.20145841]
[1724810588403,0.08170381,59497.0,59496.0,0.20145841]
[1724810589184,0.08170381,59497.0,59496.0,0.02755841]
[1724810589587,0.23507822,59497.0,59496.0,0.00455841]
[1724810589863,0.51178841,59497.0,59496.0,0.00455841]
[1724810590305,0.47338414,59497.0,59496.0,0.00455841]
[1724810590665,0.46938414,59497.0,59496.0,0.00455841]
[1724810590957,0.48138414,59497.0,59496.0,0.00455841]
[1724810591180,0.48038414,59497.0,59496.0,0.00455841]
[1724810591602,0.49038414,59497.0,59496.0,0.00455841]
[1724810591834,0.49038414,59497.0,59481.0,0.81152401]
[1724810591835,0.1941,59481.0,59457.0,0.1868]
[1724810592048,0.78053417,59481.0,59457.0,0.1868]
[1724810592252,0.78053417,59481.0,59449.0,0.0682838]
[1724810592455,0.78053417,59481.0,59451.0,0.1868]
[1724810593276,0.48701429,59481.0,59456.0,0.29351988]
[1724810593616,0.48701429,59481.0,59455.0,0.1841]
[1724810594022,0.49101429,59481.0,59455.0,0.1841]
[1724810594264,0.54011572,59481.0,59455.0,0.1841]
[1724810594470,0.72383923,59481.0,59457.0,0.29351988]
[1724810594673,0.53611572,59481.0,59457.0,0.29351988]
[1724810595070,0.56411572,59481.0,59457.0,0.29351988]
[1724810595430,0.55011572,59481.0,59457.0,0.29351988]
[1724810595644,0.71488979,59481.0,59457.0,0.29351988]
[1724810595869,0.70088979,59481.0,59457.0,0.29351988]
[1724810596088,0.71488979,59481.0,59457.0,0.29351988]
[1724810596494,0.56411572,59481.0,59457.0,0.29351988]
[1724810597924,0.56411572,59481.0,59467.0,0.1751]
[1724810598614,0.55011572,59481.0,59465.0,0.1408]
[1724810598821,0.55011572,59481.0,59462.0,0.1915]
[1724810599036,0.55011572,59481.0,59460.0,0.149]
[1724810599375,0.56411572,59481.0,59460.0,0.149]
[1724810601204,0.29585387,59481.0,59471.0,0.1866]
[1724810601410,0.14410029,59481.0,59475.0,0.1506]
[1724810601954,0.11610029,59481.0,59475.0,0.1506]
[1724810602395,0.13010029,59481.0,59480.0,8.15020586]
[1724810602568,0.13010029,59481.0,59480.0,7.93670586]
[1724810602569,0.11610029,59481.0,59480.0,7.93670586]
[1724810602776,0.50066742,59481.0,59480.0,7.93670586]
[1724810602974,0.46451032,59481.0,59480.0,7.93670586]
[1724810603207,0.51466742,59481.0,59480.0,7.93670586]
[1724810603352,0.47851032,59481.0,59480.0,7.93670586]
[1724810603559,0.14410029,59481.0,59480.0,7.93670586]
[1724810603893,0.13010029,59481.0,59480.0,7.93670586]
[1724810604275,0.14410029,59481.0,59480.0,7.93670586]
[1724810604685,0.13010029,59481.0,59480.0,7.93670586]
[1724810605131,0.14310029,59481.0,59480.0,7.93670586]
[1724810605459,0.13010029,59481.0,59480.0,7.93670586]
[1724810606089,0.14210029,59481.0,59480.0,7.93670586]
[1724810606291,0.13010029,59481.0,59480.0,7.93670586]
[1724810606493,0.12911032,59481.0,59480.0,7.93670586]
[1724810606883,0.29421032,59481.0,59480.0,7.93670586]
[1724810607282,0.39577419,59481.0,59480.0,7.93670586]
[1724810607598,0.33034561,59481.0,59480.0,7.93670586]
[1724810607801,0.35734561,59481.0,59480.0,7.93670586]
[1724810608000,0.36944598,59481.0,59480.0,7.93670586]
[1724810608221,0.38174458,59481.0,59480.0,7.93670586]
[1724810608440,0.30653981,59481.0,59480.0,7.93670586]
[1724810608615,0.32053981,59481.0,59480.0,7.93670586]
[1724810608807,0.33453981,59481.0,59480.0,7.93670586]
[1724810609020,0.40974231,59481.0,59480.0,7.93670586]
[1724810609230,0.35834391,59481.0,59480.0,7.93670586]
[1724810609441,0.33953904,59481.0,59480.0,7.93670586]
[1724810609997,0.53173904,59481.0,59480.0,7.93670586]
[1724810610369,0.63207102,59481.0,59480.0,7.93670586]
[1724810611304,0.60691844,59481.0,59480.0,7.93670586]
[1724810611813,0.25861844,59481.0,59480.0,7.93670586]
[1724810611987,0.14410029,59481.0,59480.0,7.93670586]
[1724810615339,0.14410029,59481.0,59480.0,8.29720586]
[1724810615578,0.028,59481.0,59480.0,8.29720586]
[1724810615700,0.028,59481.0,59480.0,8.39720586]
[1724810616543,0.014,59481.0,59480.0,8.39720586]
[1724810616777,0.022,59481.0,59480.0,8.39720586]
[1724810617422,0.000818,59494.0,59481.0,0.1916]
[1724810617602,0.11624158,59493.0,59483.0,0.1916]
[1724810617797,0.11624158,59493.0,59484.0,0.1464]
[1724810618015,0.11624158,59493.0,59485.0,0.123]
[1724810620082,0.12824158,59493.0,59485.0,0.123]
[1724810620666,0.13724158,59493.0,59485.0,0.123]
[1724810620889,0.13724158,59493.0,59486.0,0.1924]
[1724810621110,0.13724158,59493.0,59487.0,0.123]
[1724810621959,0.12824158,59493.0,59487.0,0.123]
[1724810622416,0.13724158,59493.0,59487.0,0.124]
[1724810622639,0.11588836,59492.0,59487.0,0.101]
[1724810623792,0.11588836,59492.0,59487.0,0.1]
[1724810624034,0.12688836,59492.0,59488.0,0.023]
[1724810624243,0.13488836,59492.0,59488.0,0.023]
[1724810624446,0.11588836,59492.0,59488.0,0.023]
[1724810624793,0.13488836,59492.0,59488.0,0.023]
[1724810625465,0.13488836,59492.0,59489.0,0.187]
[1724810625661,0.12688836,59492.0,59489.0,0.187]
[1724810626512,0.11588836,59492.0,59489.0,0.187]
[1724810626931,0.12688836,59492.0,59489.0,0.187]
[1724810627475,0.11588836,59492.0,59489.0,0.187]
[1724810627677,0.13488836,59492.0,59489.0,0.187]
[1724810627917,0.12688836,59492.0,59489.0,0.187]
[1724810628126,0.11588836,59492.0,59489.0,0.187]
[1724810628442,0.12388836,59492.0,59489.0,0.187]
[1724810628648,0.13488836,59492.0,59489.0,0.187]
[1724810632352,0.13488836,59492.0,59490.0,0.023]
[1724810633601,0.000818,59494.0,59493.0,0.1432]
[1724810633810,0.000818,59494.0,59493.0,0.4349]
[1724810634752,0.012818,59494.0,59493.0,0.4269]
[1724810635328,0.000818,59494.0,59493.0,0.4269]
[1724810635994,0.000818,59494.0,59493.0,0.4289]
[1724810636535,0.003818,59494.0,59493.0,0.4289]
[1724810637125,0.000818,59494.0,59493.0,0.4289]
[1724810637540,0.000818,59494.0,59493.0,0.4269]
[1724810638036,0.000818,59494.0,59493.0,0.4299]
[1724810638243,0.000818,59494.0,59493.0,0.4269]
[1724810638446,0.001818,59494.0,59493.0,0.4269]
[1724810638691,0.001818,59494.0,59493.0,0.4309]
[1724810639026,0.001818,59494.0,59493.0,0.4269]
[1724810639180,0.001818,59494.0,59493.0,0.4339]
[1724810639392,0.002818,59494.0,59493.0,0.4339]
[1724810639955,0.001818,59494.0,59493.0,0.4339]
[1724810640172,0.001818,59494.0,59493.0,0.4389]
[1724810640993,0.001818,59494.0,59493.0,0.4339]
[1724810641333,0.11621191,59494.0,59493.0,0.106]
[1724810641534,0.11621191,59494.0,59493.0,0.006]
[1724810642337,0.11621191,59494.0,59493.0,0.014]
[1724810642454,0.43641191,59494.0,59493.0,0.014]
[1724810642653,0.43641191,59494.0,59493.0,0.006]
[1724810643067,0.43641191,59494.0,59484.0,0.33318114]
[1724810643333,0.11602964,59493.0,59484.0,0.33318114]
[1724810643734,0.11602964,59493.0,59485.0,0.023]
[1724810644159,0.11602964,59493.0,59485.0,0.41651988]
[1724810645434,0.12202964,59493.0,59485.0,0.41651988]
[1724810646266,0.02631809,59492.0,59485.0,0.41751988]
[1724810646467,0.11610029,59491.0,59485.0,0.41751988]
[1724810647326,0.11610029,59491.0,59485.0,0.41651988]
[1724810647502,0.11610029,59491.0,59485.0,0.41751988]
[1724810648081,0.11610029,59491.0,59485.0,0.124]
[1724810648290,0.11610029,59491.0,59485.0,0.024]
[1724810648502,0.11610029,59491.0,59486.0,0.023]
[1724810648733,0.11610029,59491.0,59485.0,0.001]
[1724810648734,0.1813,59486.0,59485.0,0.001]
[1724810648915,0.45007093,59486.0,59485.0,0.001]
[1724810649115,0.3238,59484.0,59480.0,7.93670586]
[1724810649367,0.48460388,59484.0,59480.0,7.93670586]
[1724810649509,0.44060679,59484.0,59480.0,7.93670586]
[1724810649715,0.43560679,59484.0,59480.0,7.93670586]
[1724810651003,0.43560679,59484.0,59483.0,0.0018998]
[1724810651216,0.44960679,59484.0,59483.0,0.0018998]
[1724810651793,0.46160679,59484.0,59483.0,0.0028998]
[1724810651999,0.50826747,59484.0,59483.0,0.0018998]
[1724810652178,0.49626747,59484.0,59483.0,0.0018998]
[1724810652398,0.50826747,59484.0,59483.0,0.0028998]
[1724810652575,0.44760679,59484.0,59483.0,0.0018998]
[1724810653003,0.46160679,59484.0,59483.0,0.0018998]
[1724810653471,0.44760679,59484.0,59483.0,0.0018998]
[1724810653893,0.46660679,59484.0,59483.0,0.0018998]
[1724810654706,0.1752,59481.0,59480.0,7.92650383]
[1724810655007,0.48214142,59481.0,59480.0,7.92650383]
[1724810655160,0.50847495,59481.0,59480.0,7.92650383]
[1724810655360,0.50847495,59481.0,59480.0,7.84750339]
[1724810656600,0.52247495,59481.0,59480.0,7.84750339]
[1724810656800,0.47606427,59481.0,59480.0,7.84750339]
[1724810657852,0.48806427,59481.0,59480.0,7.84750339]
[1724810658634,0.48306427,59481.0,59480.0,7.84750339]
[1724810659092,0.48806427,59481.0,59480.0,7.84750339]
[1724810659300,0.5368707,59481.0,59480.0,7.84750339]
[1724810661320,0.68755896,59481.0,59480.0,7.84750339]
[1724810661535,0.5368707,59481.0,59480.0,7.84750339]
[1724810663463,0.61352986,59481.0,59480.0,7.84750339]
[1724810663675,0.58719633,59481.0,59480.0,7.84750339]
[1724810663876,0.61352687,59481.0,59480.0,7.84750339]
[1724810664014,0.46173074,59481.0,59480.0,7.84750339]
[1724810664232,0.56209137,59481.0,59480.0,7.84750339]
[1724810664436,0.65601582,59481.0,59480.0,7.84750339]
[1724810664660,0.55689902,59481.0,59480.0,7.84750339]
[1724810665271,0.55189902,59481.0,59480.0,7.84750339]
[1724810665489,0.23839902,59481.0,59480.0,8.14102327]
[1724810665946,0.16956152,59481.0,59480.0,8.14102327]
[1724810666315,0.26988848,59481.0,59480.0,8.14102327]
[1724810666517,0.14323074,59481.0,59480.0,8.46022327]
[1724810666718,0.14323074,59481.0,59480.0,8.48599685]
[1724810666924,0.14323074,59481.0,59480.0,8.48322327]
[1724810667511,0.13123074,59481.0,59480.0,8.48322327]
[1724810667712,0.11723074,59481.0,59480.0,8.48322327]
[1724810667913,0.13023074,59481.0,59480.0,8.48322327]
[1724810668175,0.13123074,59481.0,59480.0,8.48322327]
[1724810668539,0.12523074,59481.0,59480.0,8.48322327]
[1724810668743,0.11723074,59481.0,59480.0,8.48322327]
[1724810669119,0.12423074,59481.0,59480.0,8.48322327]
[1724810669345,0.13523074,59481.0,59480.0,8.48322327]
[1724810669749,0.12823074,59481.0,59480.0,8.14102327]
[1724810670891,0.11723074,59481.0,59480.0,8.14102327]
[1724810671214,0.17639151,59481.0,59480.0,7.84750339]
[1724810671434,0.15255822,59481.0,59480.0,7.84750339]
[1724810671631,0.39319171,59481.0,59480.0,7.84750339]
[1724810671837,0.34302598,59481.0,59480.0,7.84750339]
[1724810672009,0.35402598,59481.0,59480.0,7.84750339]
[1724810672162,0.36102598,59481.0,59480.0,7.84750339]
[1724810672367,0.41227118,59481.0,59480.0,7.84750339]
[1724810672576,0.35930342,59481.0,59480.0,7.84750339]
[1724810672777,0.29805822,59481.0,59480.0,7.84750339]
[1724810673010,0.31105822,59481.0,59480.0,7.84750339]
[1724810673607,0.41138909,59481.0,59480.0,7.84750339]
[1724810676644,0.41220709,59481.0,59480.0,7.84750339]
[1724810676922,0.38391009,59481.0,59480.0,7.84750339]
[1724810677124,0.27171705,59481.0,59480.0,7.84750339]
[1724810679048,0.17137622,59481.0,59480.0,8.16710339]
[1724810680289,0.15737622,59481.0,59480.0,8.16710339]
[1724810680423,0.22055057,59481.0,59480.0,8.16710339]
[1724810680629,0.17037622,59481.0,59480.0,8.16710339]
[1724810681106,0.15737622,59481.0,59480.0,8.16710339]
[1724810681295,0.2075665,59481.0,59480.0,8.16710339]
[1724810681672,0.1945665,59481.0,59480.0,8.16710339]
[1724810681878,0.2045665,59481.0,59480.0,8.16710339]
[1724810682227,0.2115665,59481.0,59480.0,8.16710339]
[1724810682428,0.15437622,59481.0,59480.0,8.16710339]
[1724810682603,0.22966164,59481.0,59480.0,8.16710339]
[1724810683252,0.23566164,59481.0,59480.0,8.16710339]
[1724810683382,0.22566164,59481.0,59480.0,8.16710339]
[1724810683619,0.21966164,59481.0,59480.0,8.16710339]
[1724810683770,0.22966164,59481.0,59480.0,8.16710339]
[1724810684199,0.15437622,59481.0,59480.0,8.16710339]
[1724810684918,0.16037622,59481.0,59480.0,8.16710339]
[1724810685770,0.15437622,59481.0,59480.0,8.02150339]
[1724810685909,0.16037622,59481.0,59480.0,8.02150339]
[1724810686145,0.28606205,59481.0,59480.0,8.02150339]
[1724810686523,0.16037622,59481.0,59480.0,8.02150339]
[1724810686756,0.28607082,59481.0,59480.0,8.02150339]
[1724810687084,0.2760714,59481.0,59480.0,8.02150339]
[1724810687263,0.2860714,59481.0,59480.0,8.02150339]
[1724810687462,0.16037622,59481.0,59480.0,8.02150339]
[1724810692578,0.16037622,59481.0,59480.0,7.84750339]
[1724810692785,0.31149522,59481.0,59480.0,7.84750339]
[1724810693039,0.16037622,59481.0,59480.0,7.84750339]
[1724810693790,0.33367821,59481.0,59480.0,7.84750339]
[1724810693994,0.51517821,59481.0,59480.0,7.84750339]
[1724810694749,0.50917821,59481.0,59480.0,7.84750339]
[1724810695115,0.52317821,59481.0,59480.0,7.84750339]
[1724810695315,0.51317821,59481.0,59480.0,7.84750339]
[1724810695514,0.49917821,59481.0,59480.0,7.84750339]
[1724810695741,0.52717821,59481.0,59480.0,7.84750339]
[1724810696139,0.51317821,59481.0,59480.0,7.84750339]
[1724810696561,0.52717821,59481.0,59480.0,7.84750339]
[1724810698760,0.49407622,59481.0,59480.0,7.84750339]
[1724810700427,0.34251191,59481.0,59480.0,8.03020339]
[1724810700745,0.17237622,59481.0,59480.0,8.03020339]
[1724810700959,0.34927622,59481.0,59480.0,7.84750339]